[Event "Early-Titled-Tuesday-Blitz-February-20-2024"]
[Site "Chess.com"]
[Date "2024.02.20"]
[Round "6"]
[White "ACollins05"]
[Black "Hudijegszid"]
[Result "1-0"]
[WhiteElo "2571"]
[BlackElo "2349"]
[TimeControl "180+1"]
[EndTime "9:05:37 PST"]
[Termination "ACollins05 won by resignation"]

1. d4 {[%clk 0:03:00.9]} 1... d5 {[%clk 0:02:59.5]} 2. c4 {[%clk 0:03:01]} 2...
e6 {[%clk 0:02:59.8]} 3. Nf3 {[%clk 0:03:00.6]} 3... a6 {[%clk 0:02:59.9]} 4. g3
{[%clk 0:02:59.2]} 4... dxc4 {[%clk 0:02:59.6]} 5. Bg2 {[%clk 0:02:59.5]} 5...
c5 {[%clk 0:03:00.1]} 6. O-O {[%clk 0:02:56.3]} 6... Nc6 {[%clk 0:03:00.1]} 7.
dxc5 {[%clk 0:02:53.3]} 7... Qxd1 {[%clk 0:02:59.6]} 8. Rxd1 {[%clk 0:02:53.8]}
8... Bxc5 {[%clk 0:02:59.9]} 9. Nbd2 {[%clk 0:02:54.1]} 9... Nge7 {[%clk
0:02:47.3]} 10. Nxc4 {[%clk 0:02:53.7]} 10... b5 {[%clk 0:02:47.5]} 11. Nd6+
{[%clk 0:02:50.7]} 11... Bxd6 {[%clk 0:02:45.9]} 12. Rxd6 {[%clk 0:02:51.6]}
12... Bb7 {[%clk 0:02:46.5]} 13. Nd4 {[%clk 0:02:39.4]} 13... Rd8 {[%clk
0:02:03.8]} 14. Rxd8+ {[%clk 0:02:35]} 14... Kxd8 {[%clk 0:02:02.6]} 15. Be3
{[%clk 0:02:16.6]} 15... Kc7 {[%clk 0:01:50.9]} 16. Rc1 {[%clk 0:02:14.5]} 16...
Rd8 {[%clk 0:01:50.5]} 17. Bf4+ {[%clk 0:01:54.3]} 17... Kb6 {[%clk 0:01:50.6]}
18. Nb3 {[%clk 0:01:49.6]} 18... Nd5 {[%clk 0:01:48.7]} 19. Bd2 {[%clk 0:01:46]}
19... Ne5 {[%clk 0:01:16.5]} 20. Ba5+ {[%clk 0:01:41.5]} 1-0

[Event "Early-Titled-Tuesday-Blitz-February-20-2024"]
[Site "Chess.com"]
[Date "2024.02.20"]
[Round "6"]
[White "InitiatingASC"]
[Black "rhungaski"]
[Result "0-1"]
[WhiteElo "2396"]
[BlackElo "2577"]
[TimeControl "180+1"]
[EndTime "9:05:47 PST"]
[Termination "rhungaski won by resignation"]

1. d4 {[%clk 0:03:00.9]} 1... g6 {[%clk 0:02:59.4]} 2. Nf3 {[%clk 0:02:59.6]}
2... Bg7 {[%clk 0:02:59.5]} 3. g3 {[%clk 0:02:59.7]} 3... d6 {[%clk 0:02:59.7]}
4. Bg2 {[%clk 0:03:00.2]} 4... Nf6 {[%clk 0:03:00.2]} 5. O-O {[%clk 0:03:00.8]}
5... O-O {[%clk 0:03:01.1]} 6. c4 {[%clk 0:03:00.2]} 6... Nc6 {[%clk 0:03:01.6]}
7. b3 {[%clk 0:02:57.7]} 7... e5 {[%clk 0:03:01.4]} 8. Bb2 {[%clk 0:02:57.2]}
8... e4 {[%clk 0:02:34.5]} 9. Ne1 {[%clk 0:02:56]} 9... Re8 {[%clk 0:02:31.8]}
10. e3 {[%clk 0:02:56]} 10... h5 {[%clk 0:02:30.9]} 11. h3 {[%clk 0:02:41.5]}
11... Bf5 {[%clk 0:02:30.2]} 12. Nd2 {[%clk 0:02:38.4]} 12... Qd7 {[%clk
0:02:26.2]} 13. a3 {[%clk 0:02:34.2]} 13... Bxh3 {[%clk 0:02:24.8]} 14. b4
{[%clk 0:02:30.7]} 14... Bxg2 {[%clk 0:02:09.9]} 15. Nxg2 {[%clk 0:02:10.2]}
15... d5 {[%clk 0:02:09.7]} 16. cxd5 {[%clk 0:02:06.8]} 16... Nxd5 {[%clk
0:02:08.4]} 17. Re1 {[%clk 0:02:00.5]} 17... Re6 {[%clk 0:01:58.8]} 18. Qc2
{[%clk 0:01:59.7]} 18... Rae8 {[%clk 0:01:55.3]} 19. Rac1 {[%clk 0:01:59.1]}
19... g5 {[%clk 0:01:50.6]} 20. b5 {[%clk 0:01:50.8]} 20... Nd8 {[%clk
0:01:44.8]} 21. a4 {[%clk 0:01:50.2]} 21... h4 {[%clk 0:01:41.4]} 22. gxh4
{[%clk 0:01:48.8]} 22... gxh4 {[%clk 0:01:41.2]} 23. Nxh4 {[%clk 0:01:49]} 23...
Rh6 {[%clk 0:01:39.4]} 24. Ng2 {[%clk 0:01:44.2]} 24... Qh3 {[%clk 0:01:34]} 0-1

[Event "Early-Titled-Tuesday-Blitz-February-20-2024"]
[Site "Chess.com"]
[Date "2024.02.20"]
[Round "6"]
[White "Mikhail_Golubev"]
[Black "Rozhkov_V"]
[Result "1-0"]
[WhiteElo "2645"]
[BlackElo "2423"]
[TimeControl "180+1"]
[EndTime "9:05:47 PST"]
[Termination "Mikhail_Golubev won by resignation"]

1. e4 {[%clk 0:03:00.9]} 1... e6 {[%clk 0:02:56.7]} 2. d4 {[%clk 0:03:00.2]}
2... d5 {[%clk 0:02:57.1]} 3. Nc3 {[%clk 0:03:00.3]} 3... Bb4 {[%clk 0:02:53.3]}
4. e5 {[%clk 0:02:59.6]} 4... c5 {[%clk 0:02:53.9]} 5. a3 {[%clk 0:02:59.9]}
5... Bxc3+ {[%clk 0:02:54.5]} 6. bxc3 {[%clk 0:03:00.6]} 6... Ne7 {[%clk
0:02:54.6]} 7. a4 {[%clk 0:03:00.8]} 7... Qa5 {[%clk 0:02:51]} 8. Bd2 {[%clk
0:02:57.2]} 8... Nbc6 {[%clk 0:02:51.5]} 9. Nf3 {[%clk 0:02:57.2]} 9... Bd7
{[%clk 0:02:48.7]} 10. Bb5 {[%clk 0:02:57.7]} 10... a6 {[%clk 0:02:48.5]} 11.
Be2 {[%clk 0:02:54.7]} 11... f6 {[%clk 0:02:42.9]} 12. exf6 {[%clk 0:02:47.5]}
12... gxf6 {[%clk 0:02:43.8]} 13. O-O {[%clk 0:02:47]} 13... c4 {[%clk
0:02:39.7]} 14. Qc1 {[%clk 0:02:37]} 14... Nf5 {[%clk 0:02:31]} 15. Rb1 {[%clk
0:02:27.2]} 15... O-O-O {[%clk 0:02:24.7]} 16. Qb2 {[%clk 0:02:22.3]} 16... Nd6
{[%clk 0:01:19.7]} 17. Bf4 {[%clk 0:02:11.3]} 17... Be8 {[%clk 0:01:20]} 18.
Bxd6 {[%clk 0:02:08.3]} 18... Rxd6 {[%clk 0:01:20.9]} 19. Qxb7+ {[%clk
0:02:07.9]} 19... Kd8 {[%clk 0:01:20]} 20. Qg7 {[%clk 0:02:06.6]} 20... Qc7
{[%clk 0:00:57.9]} 21. Qxf6+ {[%clk 0:02:03.3]} 21... Qe7 {[%clk 0:00:54.8]} 22.
Qxh8 {[%clk 0:02:02.9]} 1-0

[Event "Early-Titled-Tuesday-Blitz-February-20-2024"]
[Site "Chess.com"]
[Date "2024.02.20"]
[Round "6"]
[White "KononenkoD"]
[Black "mestrefeitosa19"]
[Result "1-0"]
[WhiteElo "2515"]
[BlackElo "2247"]
[TimeControl "180+1"]
[EndTime "9:06:04 PST"]
[Termination "KononenkoD won by resignation"]

1. e4 {[%clk 0:03:00]} 1... e5 {[%clk 0:02:59.5]} 2. Nf3 {[%clk 0:03:00.1]} 2...
Nc6 {[%clk 0:02:59.4]} 3. d4 {[%clk 0:03:00.4]} 3... exd4 {[%clk 0:02:59.5]} 4.
Nxd4 {[%clk 0:03:01.3]} 4... Bc5 {[%clk 0:02:59.7]} 5. Nxc6 {[%clk 0:02:59.5]}
5... Qf6 {[%clk 0:02:59.8]} 6. Qf3 {[%clk 0:03:00]} 6... Qxf3 {[%clk 0:02:57.9]}
7. gxf3 {[%clk 0:03:00.9]} 7... bxc6 {[%clk 0:02:58.2]} 8. Nd2 {[%clk
0:03:00.2]} 8... Nf6 {[%clk 0:02:57.5]} 9. Nb3 {[%clk 0:03:00.5]} 9... Bb6
{[%clk 0:02:57.5]} 10. a4 {[%clk 0:03:00.9]} 10... a5 {[%clk 0:02:57.1]} 11. c4
{[%clk 0:03:00.5]} 11... d6 {[%clk 0:02:51.4]} 12. c5 {[%clk 0:03:00.4]} 12...
dxc5 {[%clk 0:02:48.8]} 13. Be3 {[%clk 0:03:00.3]} 13... c4 {[%clk 0:02:47.1]}
14. Bxc4 {[%clk 0:02:57.9]} 14... Bxe3 {[%clk 0:02:44.6]} 15. fxe3 {[%clk
0:02:58.8]} 15... O-O {[%clk 0:02:44.9]} 16. Nd4 {[%clk 0:02:53.4]} 16... Bb7
{[%clk 0:02:35.6]} 17. Kf2 {[%clk 0:02:50.8]} 17... Nd7 {[%clk 0:02:33.1]} 18.
Rhg1 {[%clk 0:02:48.7]} 18... Ne5 {[%clk 0:02:32.8]} 19. Be2 {[%clk 0:02:46.4]}
19... Ba6 {[%clk 0:02:33]} 20. f4 {[%clk 0:02:41.2]} 20... Nd3+ {[%clk
0:02:30.6]} 21. Kf3 {[%clk 0:02:32.8]} 21... Nxb2 {[%clk 0:02:25.6]} 22. Ra2
{[%clk 0:02:25.6]} 22... Nd3 {[%clk 0:02:13.3]} 23. Bxd3 {[%clk 0:02:18.8]}
23... Bxd3 {[%clk 0:02:12.8]} 24. Nxc6 {[%clk 0:02:18.7]} 24... Rfe8 {[%clk
0:02:10]} 25. e5 {[%clk 0:02:18.4]} 25... f5 {[%clk 0:02:07.8]} 26. Nd4 {[%clk
0:02:08]} 26... Be4+ {[%clk 0:02:06.5]} 27. Kf2 {[%clk 0:02:06.6]} 27... c5
{[%clk 0:02:06.8]} 28. Nb5 {[%clk 0:02:06.1]} 28... Red8 {[%clk 0:02:03.8]} 29.
Nd6 {[%clk 0:02:05.9]} 29... Bd3 {[%clk 0:02:00.8]} 30. Rc1 {[%clk 0:01:48.8]}
30... Rab8 {[%clk 0:01:46.4]} 31. Rxc5 {[%clk 0:01:47.6]} 31... Rb1 {[%clk
0:01:37.6]} 32. Rd2 {[%clk 0:01:46.8]} 32... Be4 {[%clk 0:01:30.2]} 33. Nxe4
{[%clk 0:01:46.1]} 1-0

[Event "Early-Titled-Tuesday-Blitz-February-20-2024"]
[Site "Chess.com"]
[Date "2024.02.20"]
[Round "6"]
[White "Herman-NY"]
[Black "Ati1517"]
[Result "1-0"]
[WhiteElo "2544"]
[BlackElo "2231"]
[TimeControl "180+1"]
[EndTime "9:06:06 PST"]
[Termination "Herman-NY won by checkmate"]

1. e4 {[%clk 0:03:00.9]} 1... c5 {[%clk 0:02:59.7]} 2. Nf3 {[%clk 0:03:01.3]}
2... d6 {[%clk 0:03:00]} 3. d4 {[%clk 0:03:01.2]} 3... cxd4 {[%clk 0:03:00.7]}
4. Nxd4 {[%clk 0:03:02.1]} 4... Nf6 {[%clk 0:02:59.8]} 5. Nc3 {[%clk 0:03:02.7]}
5... a6 {[%clk 0:02:59.7]} 6. Bc4 {[%clk 0:03:02.5]} 6... e6 {[%clk 0:03:00.3]}
7. a3 {[%clk 0:03:02.6]} 7... Be7 {[%clk 0:03:00.7]} 8. Ba2 {[%clk 0:03:03]}
8... O-O {[%clk 0:03:01.1]} 9. Be3 {[%clk 0:03:02.3]} 9... b5 {[%clk 0:03:01.4]}
10. f3 {[%clk 0:02:57.9]} 10... Bb7 {[%clk 0:02:55.6]} 11. Qd2 {[%clk
0:02:50.7]} 11... Nc6 {[%clk 0:02:54.8]} 12. g4 {[%clk 0:02:49]} 12... Na5
{[%clk 0:02:36.5]} 13. g5 {[%clk 0:02:48.5]} 13... Nd7 {[%clk 0:02:35.2]} 14. h4
{[%clk 0:02:35.8]} 14... Ne5 {[%clk 0:02:33.6]} 15. O-O-O {[%clk 0:02:33.5]}
15... Nac4 {[%clk 0:02:31.3]} 16. Qe1 {[%clk 0:02:33.7]} 16... Nxe3 {[%clk
0:02:27.3]} 17. Qxe3 {[%clk 0:02:33.1]} 17... Rc8 {[%clk 0:02:26.5]} 18. Kb1
{[%clk 0:02:30.4]} 18... Nc4 {[%clk 0:02:24.4]} 19. Bxc4 {[%clk 0:02:24.1]}
19... Rxc4 {[%clk 0:02:25.3]} 20. Rhg1 {[%clk 0:02:18.3]} 20... d5 {[%clk
0:02:25.3]} 21. e5 {[%clk 0:02:17.4]} 21... Bc5 {[%clk 0:02:24.7]} 22. Nce2
{[%clk 0:02:14.1]} 22... Qb6 {[%clk 0:02:23]} 23. h5 {[%clk 0:01:57.3]} 23... b4
{[%clk 0:02:22.5]} 24. a4 {[%clk 0:01:57.4]} 24... b3 {[%clk 0:02:21.8]} 25.
cxb3 {[%clk 0:01:55.2]} 25... Rb4 {[%clk 0:02:19]} 26. g6 {[%clk 0:01:53.2]}
26... a5 {[%clk 0:01:54.1]} 27. gxh7+ {[%clk 0:01:38.2]} 27... Kxh7 {[%clk
0:01:52.3]} 28. Rxg7+ {[%clk 0:01:19.6]} 28... Kxg7 {[%clk 0:01:50.6]} 29. Qg5+
{[%clk 0:01:19.9]} 29... Kh7 {[%clk 0:01:50.2]} 30. Rg1 {[%clk 0:01:20.5]} 30...
Rxd4 {[%clk 0:01:31.6]} 31. Qg7# {[%clk 0:01:19.9]} 1-0

[Event "Early-Titled-Tuesday-Blitz-February-20-2024"]
[Site "Chess.com"]
[Date "2024.02.20"]
[Round "6"]
[White "Rawnsdale"]
[Black "HelvertHernandez"]
[Result "1-0"]
[WhiteElo "2531"]
[BlackElo "1978"]
[TimeControl "180+1"]
[EndTime "9:06:09 PST"]
[Termination "Rawnsdale won by resignation"]

1. e4 {[%clk 0:03:00.9]} 1... c5 {[%clk 0:02:56.6]} 2. Nf3 {[%clk 0:03:00.7]}
2... Nc6 {[%clk 0:02:56.2]} 3. d4 {[%clk 0:03:01.2]} 3... cxd4 {[%clk
0:02:56.1]} 4. Nxd4 {[%clk 0:03:02.1]} 4... Nf6 {[%clk 0:02:56.3]} 5. Nc3 {[%clk
0:03:02.2]} 5... e5 {[%clk 0:02:56.4]} 6. Ndb5 {[%clk 0:03:02.3]} 6... d6 {[%clk
0:02:56.5]} 7. Nd5 {[%clk 0:03:02.5]} 7... Nxd5 {[%clk 0:02:55.6]} 8. exd5
{[%clk 0:03:03.4]} 8... Ne7 {[%clk 0:02:55.6]} 9. c4 {[%clk 0:03:02.5]} 9... Ng6
{[%clk 0:02:54.9]} 10. c5 {[%clk 0:03:01.3]} 10... a6 {[%clk 0:02:42.9]} 11.
Nxd6+ {[%clk 0:02:55.7]} 11... Bxd6 {[%clk 0:02:42]} 12. cxd6 {[%clk 0:02:56.6]}
12... Qxd6 {[%clk 0:02:41.8]} 13. Be2 {[%clk 0:02:56.9]} 13... O-O {[%clk
0:02:38.1]} 14. O-O {[%clk 0:02:56.6]} 14... Rd8 {[%clk 0:02:37.3]} 15. Bc4
{[%clk 0:02:46.4]} 15... b5 {[%clk 0:02:36.4]} 16. Bb3 {[%clk 0:02:44.4]} 16...
Bb7 {[%clk 0:02:36.5]} 17. Bg5 {[%clk 0:02:42.2]} 17... f6 {[%clk 0:02:32.3]}
18. Be3 {[%clk 0:02:36.8]} 18... Bxd5 {[%clk 0:02:31.1]} 19. Rc1 {[%clk
0:02:32.3]} 19... Bxb3 {[%clk 0:02:29.5]} 20. Qxb3+ {[%clk 0:02:33.2]} 20... Qd5
{[%clk 0:02:28.8]} 21. Qb4 {[%clk 0:02:26.7]} 21... Rac8 {[%clk 0:02:23.9]} 22.
h3 {[%clk 0:02:21.6]} 22... Nf8 {[%clk 0:02:19.6]} 23. a4 {[%clk 0:02:04]} 23...
Rc4 {[%clk 0:02:12.9]} 24. Rxc4 {[%clk 0:02:03.7]} 24... Qxc4 {[%clk 0:02:12.8]}
25. Qa5 {[%clk 0:01:59.1]} 25... Rd3 {[%clk 0:01:59.4]} 26. Qxa6 {[%clk
0:01:54.8]} 26... Qxa4 {[%clk 0:01:54.8]} 27. Qc6 {[%clk 0:01:52.8]} 27... Qc4
{[%clk 0:01:51.1]} 28. Qe8 {[%clk 0:01:51.1]} 28... b4 {[%clk 0:01:44.8]} 29.
Ra1 {[%clk 0:01:48.9]} 29... Qf7 {[%clk 0:01:38.8]} 30. Qb5 {[%clk 0:01:45.9]}
30... Rb3 {[%clk 0:01:28.4]} 31. Ra7 {[%clk 0:01:45.5]} 31... Qg6 {[%clk
0:01:22]} 32. Qd5+ {[%clk 0:01:43.3]} 1-0

[Event "Early-Titled-Tuesday-Blitz-February-20-2024"]
[Site "Chess.com"]
[Date "2024.02.20"]
[Round "6"]
[White "deribas12345"]
[Black "dealshark"]
[Result "1-0"]
[WhiteElo "2618"]
[BlackElo "2411"]
[TimeControl "180+1"]
[EndTime "9:06:15 PST"]
[Termination "deribas12345 won by checkmate"]

1. d4 {[%clk 0:03:00.9]} 1... Nf6 {[%clk 0:02:55.2]} 2. c4 {[%clk 0:03:00.8]}
2... e6 {[%clk 0:02:55.4]} 3. Nc3 {[%clk 0:03:01.3]} 3... Bb4 {[%clk 0:02:55.6]}
4. a3 {[%clk 0:03:01.5]} 4... Bxc3+ {[%clk 0:02:55.7]} 5. bxc3 {[%clk
0:03:02.4]} 5... b6 {[%clk 0:02:55.7]} 6. f3 {[%clk 0:03:02.7]} 6... d5 {[%clk
0:02:55.4]} 7. e3 {[%clk 0:03:02.8]} 7... O-O {[%clk 0:02:54.9]} 8. cxd5 {[%clk
0:03:01.8]} 8... exd5 {[%clk 0:02:50.9]} 9. Bd3 {[%clk 0:03:01.9]} 9... Ba6
{[%clk 0:02:51.1]} 10. Bxa6 {[%clk 0:03:01.6]} 10... Nxa6 {[%clk 0:02:52]} 11.
Ne2 {[%clk 0:03:02.5]} 11... c5 {[%clk 0:02:52.2]} 12. O-O {[%clk 0:03:02.7]}
12... Re8 {[%clk 0:02:51.1]} 13. g4 {[%clk 0:02:59.4]} 13... Nc7 {[%clk
0:02:46.8]} 14. Ra2 {[%clk 0:02:56.3]} 14... Re7 {[%clk 0:02:31]} 15. Ng3 {[%clk
0:02:50.6]} 15... cxd4 {[%clk 0:02:24.2]} 16. exd4 {[%clk 0:02:40]} 16... Nb5
{[%clk 0:02:21.3]} 17. Qd3 {[%clk 0:02:35.1]} 17... Nd6 {[%clk 0:02:20.1]} 18.
Bg5 {[%clk 0:02:32.4]} 18... Re6 {[%clk 0:02:13.9]} 19. Nh5 {[%clk 0:02:29.1]}
19... Qe7 {[%clk 0:01:56.8]} 20. Bxf6 {[%clk 0:02:09.2]} 20... gxf6 {[%clk
0:01:56.5]} 21. Rg2 {[%clk 0:02:00.5]} 21... Re3 {[%clk 0:01:54.4]} 22. Qd2
{[%clk 0:01:46]} 22... Nc4 {[%clk 0:01:53.7]} 23. Qf2 {[%clk 0:01:44.3]} 23...
Kf8 {[%clk 0:01:33.6]} 24. Qh4 {[%clk 0:01:39.5]} 24... Re6 {[%clk 0:01:24.7]}
25. Nf4 {[%clk 0:01:38.4]} 25... Ne3 {[%clk 0:01:13]} 26. Qxh7 {[%clk
0:01:28.3]} 26... Nxf1 {[%clk 0:01:09.1]} 27. Qh8# {[%clk 0:01:27.6]} 1-0

[Event "Early-Titled-Tuesday-Blitz-February-20-2024"]
[Site "Chess.com"]
[Date "2024.02.20"]
[Round "6"]
[White "CristianS27"]
[Black "HanSchut"]
[Result "1-0"]
[WhiteElo "2556"]
[BlackElo "2289"]
[TimeControl "180+1"]
[EndTime "9:06:19 PST"]
[Termination "CristianS27 won by checkmate"]

1. e4 {[%clk 0:03:00.9]} 1... c5 {[%clk 0:02:53.3]} 2. Nf3 {[%clk 0:03:01.1]}
2... d6 {[%clk 0:02:53.5]} 3. d4 {[%clk 0:03:01.7]} 3... cxd4 {[%clk 0:02:54.1]}
4. Nxd4 {[%clk 0:03:02.6]} 4... Nf6 {[%clk 0:02:54.1]} 5. Nc3 {[%clk 0:03:03.4]}
5... a6 {[%clk 0:02:50.6]} 6. Be3 {[%clk 0:03:03.9]} 6... e5 {[%clk 0:02:50.5]}
7. Nf3 {[%clk 0:03:04.5]} 7... Qc7 {[%clk 0:02:47]} 8. a4 {[%clk 0:03:03.9]}
8... Be7 {[%clk 0:02:44.9]} 9. a5 {[%clk 0:03:03.6]} 9... Be6 {[%clk 0:02:42]}
10. Ng5 {[%clk 0:03:02.3]} 10... Bc4 {[%clk 0:02:39.5]} 11. Bb6 {[%clk
0:02:49.8]} 11... Qc8 {[%clk 0:02:37.8]} 12. Bxc4 {[%clk 0:02:50]} 12... Qxc4
{[%clk 0:02:37.4]} 13. Ra4 {[%clk 0:02:50.9]} 13... Qc6 {[%clk 0:02:22.7]} 14.
Qd3 {[%clk 0:02:51.1]} 14... Nbd7 {[%clk 0:02:21]} 15. Rc4 {[%clk 0:02:35.5]}
15... Nc5 {[%clk 0:02:20.3]} 16. Bxc5 {[%clk 0:02:34.9]} 16... dxc5 {[%clk
0:02:18.7]} 17. Nd5 {[%clk 0:02:28.9]} 17... h6 {[%clk 0:02:02.8]} 18. Nf3
{[%clk 0:02:18.1]} 18... Nxd5 {[%clk 0:01:45.2]} 19. exd5 {[%clk 0:02:07.6]}
19... Qd6 {[%clk 0:01:45.2]} 20. O-O {[%clk 0:01:57.3]} 20... O-O {[%clk
0:01:40.5]} 21. Re1 {[%clk 0:01:57.9]} 21... f6 {[%clk 0:01:35.4]} 22. Nh4
{[%clk 0:01:53]} 22... Rfd8 {[%clk 0:01:18.4]} 23. Qg6 {[%clk 0:01:41.7]} 23...
Qxd5 {[%clk 0:00:45.2]} 24. Nf5 {[%clk 0:01:40.6]} 24... Qe6 {[%clk 0:00:45.3]}
25. Qxg7# {[%clk 0:01:39.6]} 1-0

[Event "Early-Titled-Tuesday-Blitz-February-20-2024"]
[Site "Chess.com"]
[Date "2024.02.20"]
[Round "6"]
[White "blitzking1729"]
[Black "nj123456"]
[Result "1-0"]
[WhiteElo "2709"]
[BlackElo "2435"]
[TimeControl "180+1"]
[EndTime "9:06:27 PST"]
[Termination "blitzking1729 won by resignation"]

1. Nf3 {[%clk 0:02:52.2]} 1... Nf6 {[%clk 0:02:59.7]} 2. e3 {[%clk 0:02:50.5]}
2... d5 {[%clk 0:02:59.5]} 3. c4 {[%clk 0:02:36.1]} 3... e6 {[%clk 0:02:58.8]}
4. Nc3 {[%clk 0:02:32.5]} 4... Be7 {[%clk 0:02:54.6]} 5. b3 {[%clk 0:02:31.2]}
5... O-O {[%clk 0:02:54.4]} 6. Bb2 {[%clk 0:02:32]} 6... c5 {[%clk 0:02:52.3]}
7. cxd5 {[%clk 0:02:32]} 7... Nxd5 {[%clk 0:02:52.4]} 8. Nxd5 {[%clk 0:02:31.5]}
8... Qxd5 {[%clk 0:02:53.3]} 9. Bc4 {[%clk 0:02:31.2]} 9... Qd8 {[%clk
0:02:53.1]} 10. O-O {[%clk 0:02:30.3]} 10... Nc6 {[%clk 0:02:53.1]} 11. Rc1
{[%clk 0:02:30.2]} 11... b6 {[%clk 0:02:40.6]} 12. d4 {[%clk 0:02:28.4]} 12...
Bb7 {[%clk 0:02:38.8]} 13. d5 {[%clk 0:02:24.9]} 13... exd5 {[%clk 0:02:35]} 14.
Bxd5 {[%clk 0:02:24.7]} 14... Bf6 {[%clk 0:02:34]} 15. Rc2 {[%clk 0:02:04.9]}
15... Bxb2 {[%clk 0:02:26.3]} 16. Rxb2 {[%clk 0:02:04.9]} 16... Qf6 {[%clk
0:02:27]} 17. Rd2 {[%clk 0:02:04.5]} 17... Rad8 {[%clk 0:02:26.5]} 18. e4 {[%clk
0:01:46.6]} 18... Ba6 {[%clk 0:02:24.3]} 19. Re1 {[%clk 0:01:42.8]} 19... Nb4
{[%clk 0:02:21.7]} 20. e5 {[%clk 0:01:39.9]} 20... Qh6 {[%clk 0:02:05.9]} 21.
Bxf7+ {[%clk 0:01:36.3]} 21... Kxf7 {[%clk 0:02:03.1]} 22. Rxd8 {[%clk
0:01:37.2]} 22... Nd3 {[%clk 0:01:54.4]} 23. Rxd3 {[%clk 0:01:33.7]} 23... Bxd3
{[%clk 0:01:54]} 24. Qxd3 {[%clk 0:01:34.6]} 24... Ke7 {[%clk 0:01:51.6]} 25. e6
{[%clk 0:01:30.5]} 25... Rd8 {[%clk 0:01:50.9]} 26. Qa6 {[%clk 0:01:29.5]} 26...
Qf4 {[%clk 0:01:39.3]} 27. Qxa7+ {[%clk 0:01:26.5]} 27... Ke8 {[%clk 0:01:39.7]}
28. e7 {[%clk 0:01:22.2]} 28... Rc8 {[%clk 0:01:36.1]} 29. Qb7 {[%clk
0:01:17.9]} 29... Qc7 {[%clk 0:01:34.8]} 30. Qd5 {[%clk 0:01:15.8]} 1-0

[Event "Early-Titled-Tuesday-Blitz-February-20-2024"]
[Site "Chess.com"]
[Date "2024.02.20"]
[Round "6"]
[White "DuleMudule"]
[Black "ilya2700"]
[Result "1-0"]
[WhiteElo "2854"]
[BlackElo "2376"]
[TimeControl "180+1"]
[EndTime "9:06:32 PST"]
[Termination "DuleMudule won by resignation"]

1. d4 {[%clk 0:03:00.9]} 1... Nf6 {[%clk 0:02:57.4]} 2. Bg5 {[%clk 0:02:59.4]}
2... d5 {[%clk 0:02:55.9]} 3. e3 {[%clk 0:02:57.8]} 3... g6 {[%clk 0:02:55.1]}
4. Nd2 {[%clk 0:02:50.1]} 4... Bg7 {[%clk 0:02:54.9]} 5. Bd3 {[%clk 0:02:50.1]}
5... O-O {[%clk 0:02:54.8]} 6. f4 {[%clk 0:02:49.7]} 6... Nbd7 {[%clk
0:02:54.8]} 7. Ngf3 {[%clk 0:02:49.1]} 7... b6 {[%clk 0:02:54.8]} 8. Ne5 {[%clk
0:02:48.9]} 8... Bb7 {[%clk 0:02:54.5]} 9. Qf3 {[%clk 0:02:49]} 9... c5 {[%clk
0:02:53.3]} 10. O-O {[%clk 0:02:48.9]} 10... Rc8 {[%clk 0:02:51.3]} 11. c3
{[%clk 0:02:48.5]} 11... Re8 {[%clk 0:02:43.7]} 12. f5 {[%clk 0:02:40.9]} 12...
cxd4 {[%clk 0:02:39.7]} 13. exd4 {[%clk 0:02:31.2]} 13... Qc7 {[%clk 0:02:38.6]}
14. Rae1 {[%clk 0:02:25.1]} 14... Nf8 {[%clk 0:01:42.8]} 15. fxg6 {[%clk
0:02:17.9]} 15... Nxg6 {[%clk 0:01:41.6]} 16. h4 {[%clk 0:02:11.7]} 16... h6
{[%clk 0:01:09]} 17. Bxf6 {[%clk 0:01:52]} 17... Bxf6 {[%clk 0:01:09.3]} 18.
Nxg6 {[%clk 0:01:47.1]} 18... fxg6 {[%clk 0:01:09.3]} 19. Bxg6 {[%clk 0:01:48]}
19... Rf8 {[%clk 0:01:09.7]} 20. Qg4 {[%clk 0:01:42.3]} 20... Kh8 {[%clk
0:01:08.8]} 21. Bf5 {[%clk 0:01:35.6]} 21... Rcd8 {[%clk 0:01:01.4]} 22. Qg6
{[%clk 0:01:33.3]} 22... e5 {[%clk 0:00:55.9]} 23. Qxh6+ {[%clk 0:01:32.2]}
23... Kg8 {[%clk 0:00:56.4]} 24. Be6+ {[%clk 0:01:32.5]} 24... Rf7 {[%clk
0:00:55.6]} 25. Rxf6 {[%clk 0:01:32.6]} 25... exd4 {[%clk 0:00:55.3]} 1-0

[Event "Early-Titled-Tuesday-Blitz-February-20-2024"]
[Site "Chess.com"]
[Date "2024.02.20"]
[Round "6"]
[White "PavelChernomordik"]
[Black "SirGerhard"]
[Result "0-1"]
[WhiteElo "2439"]
[BlackElo "2736"]
[TimeControl "180+1"]
[EndTime "9:06:34 PST"]
[Termination "SirGerhard won by resignation"]

1. e4 {[%clk 0:03:00.9]} 1... c5 {[%clk 0:02:59.8]} 2. Nc3 {[%clk 0:03:00.4]}
2... Nc6 {[%clk 0:02:59.6]} 3. Bb5 {[%clk 0:03:00.1]} 3... Nd4 {[%clk
0:02:58.5]} 4. Bc4 {[%clk 0:02:59.7]} 4... Nf6 {[%clk 0:02:54.8]} 5. Nge2 {[%clk
0:02:59.1]} 5... e6 {[%clk 0:02:49.8]} 6. O-O {[%clk 0:02:55.4]} 6... a6 {[%clk
0:02:47.3]} 7. d3 {[%clk 0:02:52]} 7... b5 {[%clk 0:02:47.1]} 8. Bb3 {[%clk
0:02:51.4]} 8... Nxb3 {[%clk 0:02:44.4]} 9. axb3 {[%clk 0:02:50.9]} 9... Bb7
{[%clk 0:02:45.3]} 10. Ng3 {[%clk 0:02:43.6]} 10... d5 {[%clk 0:02:34.4]} 11.
Qe2 {[%clk 0:02:37.1]} 11... dxe4 {[%clk 0:02:25.7]} 12. dxe4 {[%clk 0:02:34.3]}
12... Be7 {[%clk 0:02:24.7]} 13. Rd1 {[%clk 0:02:29.2]} 13... Qc7 {[%clk
0:02:24.2]} 14. Bg5 {[%clk 0:02:20.6]} 14... h6 {[%clk 0:02:22.3]} 15. Be3
{[%clk 0:02:15.1]} 15... O-O {[%clk 0:02:21.1]} 16. f3 {[%clk 0:02:13.4]} 16...
Rfd8 {[%clk 0:02:17.2]} 17. Qf2 {[%clk 0:02:12]} 17... Rxd1+ {[%clk 0:02:03]}
18. Rxd1 {[%clk 0:02:07.1]} 18... c4 {[%clk 0:02:03.9]} 19. bxc4 {[%clk
0:02:03.3]} 19... Qxc4 {[%clk 0:02:03.4]} 20. Bd4 {[%clk 0:01:57.5]} 20... Rc8
{[%clk 0:01:58.5]} 21. b3 {[%clk 0:01:55.9]} 21... Qc7 {[%clk 0:01:55.6]} 22.
Qe3 {[%clk 0:01:49.6]} 22... e5 {[%clk 0:01:47.8]} 23. Nf5 {[%clk 0:01:33.5]}
23... exd4 {[%clk 0:01:42.1]} 24. Nxe7+ {[%clk 0:01:25.7]} 24... Qxe7 {[%clk
0:01:41.7]} 25. Qxd4 {[%clk 0:01:25.5]} 25... Qc5 {[%clk 0:01:34.8]} 26. Ne2
{[%clk 0:01:19.9]} 26... Qxc2 {[%clk 0:01:28.3]} 27. Rd2 {[%clk 0:01:11.6]}
27... Qxb3 {[%clk 0:01:23.9]} 28. g4 {[%clk 0:01:07.7]} 28... Qxf3 {[%clk
0:01:21.5]} 0-1